[Event "Late-Titled-Tuesday-Blitz-September-12-2023"]
[Site "Chess.com"]
[Date "2023.09.12"]
[Round "5"]
[White "PNEPaul"]
[Black "FuenfgegenWilly"]
[Result "0-1"]
[WhiteElo "1908"]
[BlackElo "2387"]
[TimeControl "180+1"]
[EndTime "14:52:08 PDT"]
[Termination "FuenfgegenWilly won by resignation"]

1. e4 {[%clk 0:03:00.9]} 1... Na6 {[%clk 0:02:59.4]} 2. Nf3 {[%clk 0:02:57.1]}
2... c6 {[%clk 0:02:58.1]} 3. d4 {[%clk 0:02:55.7]} 3... d5 {[%clk 0:02:57.6]}
4. e5 {[%clk 0:02:55.8]} 4... Bf5 {[%clk 0:02:57.4]} 5. Bd3 {[%clk 0:02:54.8]}
5... g6 {[%clk 0:02:55.7]} 6. Bxf5 {[%clk 0:02:52.8]} 6... gxf5 {[%clk
0:02:56.6]} 7. Qd3 {[%clk 0:02:52.1]} 7... e6 {[%clk 0:02:56.3]} 8. c3 {[%clk
0:02:52]} 8... Ne7 {[%clk 0:02:49.5]} 9. Bg5 {[%clk 0:02:48.8]} 9... Qb6 {[%clk
0:02:48]} 10. Bxe7 {[%clk 0:02:42.4]} 10... Qxb2 {[%clk 0:02:43.7]} 11. Bxf8
{[%clk 0:02:36.5]} 11... Rxf8 {[%clk 0:02:35.3]} 12. O-O {[%clk 0:02:28.4]}
12... Qxa1 {[%clk 0:02:34.4]} 13. Nbd2 {[%clk 0:02:27.5]} 13... Qxa2 {[%clk
0:02:32.9]} 14. Ng5 {[%clk 0:02:19.2]} 14... Rh8 {[%clk 0:02:29.3]} 15. Qh3
{[%clk 0:02:09.3]} 15... Qxd2 {[%clk 0:02:25.3]} 16. Qh5 {[%clk 0:02:04]} 16...
O-O-O {[%clk 0:02:21]} 17. Nxf7 {[%clk 0:02:02.8]} 17... Rhe8 {[%clk 0:02:10.3]}
18. Nxd8 {[%clk 0:02:01]} 18... Kxd8 {[%clk 0:02:11.2]} 19. Qxh7 {[%clk
0:01:59.2]} 19... Nc7 {[%clk 0:02:09.9]} 20. h4 {[%clk 0:01:47.3]} 20... Re7
{[%clk 0:02:08.6]} 21. Qh8+ {[%clk 0:01:38.9]} 21... Kd7 {[%clk 0:02:07.6]} 22.
h5 {[%clk 0:01:37.2]} 22... Ne8 {[%clk 0:02:00.7]} 23. h6 {[%clk 0:01:33.4]}
23... Qg5 {[%clk 0:01:55.6]} 24. f4 {[%clk 0:01:28.1]} 24... Qh4 {[%clk
0:01:48.4]} 25. Rf3 {[%clk 0:01:16.5]} 25... a5 {[%clk 0:01:25.3]} 26. Rh3
{[%clk 0:01:11.9]} 26... Qe1+ {[%clk 0:01:25.4]} 27. Kh2 {[%clk 0:01:10.4]}
27... a4 {[%clk 0:01:23.3]} 28. h7 {[%clk 0:01:05.9]} 28... a3 {[%clk
0:00:56.2]} 29. Qf8 {[%clk 0:00:58.2]} 29... a2 {[%clk 0:00:45.5]} 30. Qxe7+
{[%clk 0:00:57]} 30... Kxe7 {[%clk 0:00:42.4]} 31. h8=Q {[%clk 0:00:55.9]} 31...
a1=Q {[%clk 0:00:37.1]} 32. Qh7+ {[%clk 0:00:26.5]} 32... Kd8 {[%clk 0:00:35.6]}
0-1

[Event "Late-Titled-Tuesday-Blitz-September-12-2023"]
[Site "Chess.com"]
[Date "2023.09.12"]
[Round "5"]
[White "drdaro"]
[Black "zajka-molotok"]
[Result "1-0"]
[WhiteElo "2289"]
[BlackElo "2499"]
[TimeControl "180+1"]
[EndTime "14:52:09 PDT"]
[Termination "drdaro won on time"]

1. e3 {[%clk 0:03:00.3]} 1... c5 {[%clk 0:02:58.7]} 2. d4 {[%clk 0:02:57.5]}
2... d5 {[%clk 0:02:56.3]} 3. Nf3 {[%clk 0:02:56]} 3... Nc6 {[%clk 0:02:54.2]}
4. Be2 {[%clk 0:02:48.3]} 4... cxd4 {[%clk 0:02:40]} 5. exd4 {[%clk 0:02:49.1]}
5... Bg4 {[%clk 0:02:38.3]} 6. O-O {[%clk 0:02:48.3]} 6... e6 {[%clk 0:02:37.8]}
7. h3 {[%clk 0:02:46]} 7... Bh5 {[%clk 0:02:35.1]} 8. c4 {[%clk 0:02:43.2]} 8...
dxc4 {[%clk 0:02:27]} 9. Bxc4 {[%clk 0:02:36.7]} 9... Nf6 {[%clk 0:02:21.3]} 10.
Nc3 {[%clk 0:02:27.8]} 10... Be7 {[%clk 0:02:07.5]} 11. d5 {[%clk 0:02:11.8]}
11... exd5 {[%clk 0:01:55.1]} 12. Nxd5 {[%clk 0:02:09.7]} 12... O-O {[%clk
0:01:46.6]} 13. Nxe7+ {[%clk 0:02:01.3]} 13... Qxe7 {[%clk 0:01:44.1]} 14. Re1
{[%clk 0:02:00.2]} 14... Bxf3 {[%clk 0:01:36]} 15. gxf3 {[%clk 0:01:52.4]} 15...
Rad8 {[%clk 0:01:32.4]} 16. Qe2 {[%clk 0:01:50.2]} 16... Qxe2 {[%clk 0:01:18.7]}
17. Bxe2 {[%clk 0:01:50.9]} 17... Nd4 {[%clk 0:01:18.6]} 18. Bd1 {[%clk
0:01:46.5]} 18... Rc8 {[%clk 0:00:57.7]} 19. Be3 {[%clk 0:01:41.9]} 19... Nc2
{[%clk 0:00:56.4]} 20. Bxc2 {[%clk 0:01:41.5]} 20... Rxc2 {[%clk 0:00:57.3]} 21.
Bxa7 {[%clk 0:01:38.2]} 21... Rxb2 {[%clk 0:00:56.1]} 22. Reb1 {[%clk
0:01:36.4]} 22... Rxb1+ {[%clk 0:00:22.9]} 23. Rxb1 {[%clk 0:01:37.2]} 23... Rd8
{[%clk 0:00:18.1]} 24. Rxb7 {[%clk 0:01:35.2]} 24... h5 {[%clk 0:00:17.7]} 25.
Rb8 {[%clk 0:01:31.5]} 25... Rxb8 {[%clk 0:00:17.2]} 26. Bxb8 {[%clk 0:01:32.3]}
26... Kf8 {[%clk 0:00:15.2]} 27. a4 {[%clk 0:01:31.5]} 27... Nd7 {[%clk
0:00:08.9]} 28. Bd6+ {[%clk 0:01:30.7]} 28... Ke8 {[%clk 0:00:09.1]} 29. a5
{[%clk 0:01:29.9]} 29... Kd8 {[%clk 0:00:07]} 30. Kf1 {[%clk 0:01:24.1]} 30...
Kc8 {[%clk 0:00:06.9]} 31. a6 {[%clk 0:01:08.1]} 31... g6 {[%clk 0:00:05.6]} 32.
Ke2 {[%clk 0:01:05.8]} 32... Nf6 {[%clk 0:00:03.9]} 33. Kd3 {[%clk 0:01:04.1]}
33... Nd5 {[%clk 0:00:02.1]} 34. Kd4 {[%clk 0:01:02.4]} 1-0

[Event "Late-Titled-Tuesday-Blitz-September-12-2023"]
[Site "Chess.com"]
[Date "2023.09.12"]
[Round "5"]
[White "DuleMudule"]
[Black "cthulhuuu"]
[Result "1-0"]
[WhiteElo "2768"]
[BlackElo "2489"]
[TimeControl "180+1"]
[EndTime "14:52:11 PDT"]
[Termination "DuleMudule won on time"]

1. d4 {[%clk 0:03:00.9]} 1... Nf6 {[%clk 0:03:00.7]} 2. Bg5 {[%clk 0:03:00.7]}
2... e6 {[%clk 0:03:00.4]} 3. e3 {[%clk 0:03:00.5]} 3... Be7 {[%clk 0:03:00.1]}
4. Nd2 {[%clk 0:03:00.3]} 4... b6 {[%clk 0:02:59.1]} 5. Ngf3 {[%clk 0:02:57.5]}
5... Bb7 {[%clk 0:02:58.6]} 6. Bxf6 {[%clk 0:02:57.8]} 6... Bxf6 {[%clk
0:02:58.8]} 7. Bd3 {[%clk 0:02:58.5]} 7... Be7 {[%clk 0:02:57.1]} 8. c3 {[%clk
0:02:56.7]} 8... f5 {[%clk 0:02:56.6]} 9. e4 {[%clk 0:02:55.6]} 9... fxe4 {[%clk
0:02:56.4]} 10. Nxe4 {[%clk 0:02:52.1]} 10... O-O {[%clk 0:02:55]} 11. Qe2
{[%clk 0:02:49.1]} 11... Qe8 {[%clk 0:02:34]} 12. h4 {[%clk 0:02:46.2]} 12...
Qh5 {[%clk 0:02:31.3]} 13. O-O-O {[%clk 0:02:44.9]} 13... a5 {[%clk 0:02:06.1]}
14. Kb1 {[%clk 0:02:33.2]} 14... Kh8 {[%clk 0:01:28.1]} 15. Neg5 {[%clk
0:02:26.3]} 15... h6 {[%clk 0:00:58.9]} 16. Bc2 {[%clk 0:02:11.1]} 16... Bxf3
{[%clk 0:00:26.4]} 17. Nxf3 {[%clk 0:02:00.8]} 17... Nc6 {[%clk 0:00:26.3]} 18.
d5 {[%clk 0:01:52.4]} 18... exd5 {[%clk 0:00:21.7]} 19. Qd3 {[%clk 0:01:51.8]}
19... g6 {[%clk 0:00:19.6]} 20. Ng5 {[%clk 0:01:50.7]} 20... Kg7 {[%clk
0:00:17.7]} 21. g4 {[%clk 0:01:50]} 21... Ne5 {[%clk 0:00:16.7]} 22. Qxd5 {[%clk
0:01:43.9]} 22... Nxg4 {[%clk 0:00:12]} 23. Qxd7 {[%clk 0:01:44]} 23... hxg5
{[%clk 0:00:08.8]} 24. Qxe7+ {[%clk 0:01:42.7]} 24... Rf7 {[%clk 0:00:09.3]} 25.
Qe4 {[%clk 0:01:42.4]} 25... gxh4 {[%clk 0:00:06.7]} 26. Qxa8 {[%clk 0:01:41.5]}
26... Nxf2 {[%clk 0:00:05.7]} 27. Rdg1 {[%clk 0:01:39.9]} 27... Nxh1 {[%clk
0:00:06.1]} 28. Bxg6 {[%clk 0:01:38.6]} 28... Rf1+ {[%clk 0:00:05.4]} 29. Rxf1
{[%clk 0:01:36.3]} 29... Qxg6+ {[%clk 0:00:06]} 30. Ka1 {[%clk 0:01:36.6]} 30...
Ng3 {[%clk 0:00:05.6]} 31. Qf8+ {[%clk 0:01:36.2]} 31... Kh7 {[%clk 0:00:06.4]}
32. Rf7+ {[%clk 0:01:36.3]} 32... Qxf7 {[%clk 0:00:06.1]} 33. Qxf7+ {[%clk
0:01:37.2]} 33... Kh6 {[%clk 0:00:06.6]} 34. Qf4+ {[%clk 0:01:36.9]} 34... Kh5
{[%clk 0:00:04.8]} 35. Qxc7 {[%clk 0:01:37.8]} 35... Kg4 {[%clk 0:00:04.9]} 36.
Qxb6 {[%clk 0:01:37.5]} 36... h3 {[%clk 0:00:05.5]} 37. Qe6+ {[%clk 0:01:37.3]}
37... Nf5 {[%clk 0:00:05.6]} 38. b4 {[%clk 0:01:35]} 38... axb4 {[%clk
0:00:02.9]} 39. cxb4 {[%clk 0:01:35.9]} 39... h2 {[%clk 0:00:03.6]} 40. Qe4+
{[%clk 0:01:36]} 1-0

[Event "Late-Titled-Tuesday-Blitz-September-12-2023"]
[Site "Chess.com"]
[Date "2023.09.12"]
[Round "5"]
[White "Abund"]
[Black "Schattman"]
[Result "1/2-1/2"]
[WhiteElo "2740"]
[BlackElo "2495"]
[TimeControl "180+1"]
[EndTime "14:52:13 PDT"]
[Termination "Game drawn by agreement"]

1. e4 {[%clk 0:02:55]} 1... c5 {[%clk 0:02:59.7]} 2. Nf3 {[%clk 0:02:54.5]} 2...
e6 {[%clk 0:03:00.1]} 3. c3 {[%clk 0:02:54.8]} 3... d5 {[%clk 0:02:59.8]} 4.
exd5 {[%clk 0:02:55.2]} 4... Qxd5 {[%clk 0:03:00.3]} 5. d4 {[%clk 0:02:55.6]}
5... Nf6 {[%clk 0:03:00.3]} 6. Na3 {[%clk 0:02:55.4]} 6... Nbd7 {[%clk
0:03:00.3]} 7. Be3 {[%clk 0:02:37.7]} 7... a6 {[%clk 0:02:46.7]} 8. Nc4 {[%clk
0:02:18.6]} 8... b5 {[%clk 0:02:38.5]} 9. Nce5 {[%clk 0:02:18.6]} 9... Nxe5
{[%clk 0:02:22]} 10. Nxe5 {[%clk 0:02:09.7]} 10... cxd4 {[%clk 0:02:19.8]} 11.
Bxd4 {[%clk 0:02:04]} 11... Bb7 {[%clk 0:02:03.3]} 12. Rg1 {[%clk 0:01:32.9]}
12... Bc5 {[%clk 0:01:53.1]} 13. Nf3 {[%clk 0:01:13.2]} 13... Bxd4 {[%clk
0:01:44.6]} 14. Qxd4 {[%clk 0:01:13.2]} 14... O-O {[%clk 0:01:31.6]} 15. Qxd5
{[%clk 0:01:04.2]} 15... Bxd5 {[%clk 0:01:26.1]} 16. Be2 {[%clk 0:00:58.9]}
16... Rfb8 {[%clk 0:01:14.1]} 17. a3 {[%clk 0:00:55]} 17... a5 {[%clk
0:01:11.2]} 18. Nd4 {[%clk 0:00:40.7]} 18... b4 {[%clk 0:01:07]} 19. axb4 {[%clk
0:00:41.1]} 19... axb4 {[%clk 0:01:05.4]} 20. Rxa8 {[%clk 0:00:30.5]} 20... Rxa8
{[%clk 0:01:06.3]} 21. cxb4 {[%clk 0:00:30.4]} 21... Ra1+ {[%clk 0:00:53.3]} 22.
Bd1 {[%clk 0:00:30.3]} 22... e5 {[%clk 0:00:48.5]} 23. Nc2 {[%clk 0:00:29.8]}
23... Rb1 {[%clk 0:00:43.9]} 24. Ne3 {[%clk 0:00:27.6]} 24... Rxb2 {[%clk
0:00:36.3]} 25. Bc2 {[%clk 0:00:19.6]} 1/2-1/2

[Event "Late-Titled-Tuesday-Blitz-September-12-2023"]
[Site "Chess.com"]
[Date "2023.09.12"]
[Round "5"]
[White "Hasangatin_Ramil"]
[Black "rdarruda"]
[Result "1/2-1/2"]
[WhiteElo "2714"]
[BlackElo "2518"]
[TimeControl "180+1"]
[EndTime "14:52:17 PDT"]
[Termination "Game drawn by repetition"]

1. e4 {[%clk 0:01:11.7]} 1... c5 {[%clk 0:02:57.8]} 2. Nf3 {[%clk 0:01:11.5]}
2... Nc6 {[%clk 0:02:57.8]} 3. Bb5 {[%clk 0:01:11.3]} 3... g6 {[%clk 0:02:57.2]}
4. O-O {[%clk 0:01:11.8]} 4... Bg7 {[%clk 0:02:56.4]} 5. c3 {[%clk 0:01:12.4]}
5... Nf6 {[%clk 0:02:56.4]} 6. Qa4 {[%clk 0:01:12.9]} 6... O-O {[%clk
0:02:54.9]} 7. d4 {[%clk 0:01:13.4]} 7... cxd4 {[%clk 0:02:47.5]} 8. cxd4 {[%clk
0:01:14.3]} 8... d6 {[%clk 0:02:46.8]} 9. d5 {[%clk 0:01:13.9]} 9... Nb8 {[%clk
0:02:44]} 10. Nc3 {[%clk 0:01:14.2]} 10... Bd7 {[%clk 0:02:40.9]} 11. Be3 {[%clk
0:01:12.7]} 11... a6 {[%clk 0:02:40.5]} 12. Bxd7 {[%clk 0:01:11.5]} 12... Nbxd7
{[%clk 0:02:41.4]} 13. Qb4 {[%clk 0:01:10.8]} 13... Qb8 {[%clk 0:02:35.3]} 14.
a4 {[%clk 0:01:08.6]} 14... Ng4 {[%clk 0:02:33.4]} 15. Bd4 {[%clk 0:01:07.6]}
15... Nge5 {[%clk 0:02:31.9]} 16. Nxe5 {[%clk 0:01:05.4]} 16... Nxe5 {[%clk
0:02:32.8]} 17. Rfd1 {[%clk 0:01:04.1]} 17... Rc8 {[%clk 0:02:28.1]} 18. Qb3
{[%clk 0:00:58]} 18... Qc7 {[%clk 0:02:22.8]} 19. a5 {[%clk 0:00:52.8]} 19...
Rab8 {[%clk 0:02:01.4]} 20. Ra4 {[%clk 0:00:49.2]} 20... Nc4 {[%clk 0:01:58.2]}
21. Bxg7 {[%clk 0:00:47.6]} 21... Kxg7 {[%clk 0:01:59.1]} 22. Qa2 {[%clk
0:00:44.7]} 22... b5 {[%clk 0:01:56.8]} 23. axb6 {[%clk 0:00:44.2]} 23... Rxb6
{[%clk 0:01:57.3]} 24. b3 {[%clk 0:00:39.6]} 24... Nb2 {[%clk 0:01:36.4]} 25.
Qxb2 {[%clk 0:00:39.3]} 25... Qxc3 {[%clk 0:01:36.9]} 26. Qxc3+ {[%clk
0:00:38.1]} 26... Rxc3 {[%clk 0:01:37.8]} 27. Rda1 {[%clk 0:00:26.5]} 27...
Rcxb3 {[%clk 0:01:34.1]} 28. f3 {[%clk 0:00:25.7]} 28... Rb1+ {[%clk 0:01:32.7]}
29. Rxb1 {[%clk 0:00:24.9]} 29... Rxb1+ {[%clk 0:01:33.2]} 30. Kf2 {[%clk
0:00:25.5]} 30... Rb6 {[%clk 0:01:34]} 31. h4 {[%clk 0:00:22.4]} 31... h5 {[%clk
0:01:33.4]} 32. g4 {[%clk 0:00:21.4]} 32... Kf6 {[%clk 0:01:32.2]} 33. gxh5
{[%clk 0:00:19.3]} 33... gxh5 {[%clk 0:01:33.1]} 34. f4 {[%clk 0:00:19.7]} 34...
e5 {[%clk 0:01:25.6]} 35. dxe6 {[%clk 0:00:18.2]} 35... fxe6 {[%clk 0:01:26.3]}
36. Ra5 {[%clk 0:00:18.4]} 36... Kg6 {[%clk 0:01:11.9]} 37. Rg5+ {[%clk
0:00:18.1]} 37... Kh6 {[%clk 0:01:12]} 38. Ra5 {[%clk 0:00:18.7]} 38... Kg6
{[%clk 0:01:06.5]} 39. Rg5+ {[%clk 0:00:18.4]} 39... Kh6 {[%clk 0:01:05.4]} 40.
Ra5 {[%clk 0:00:18.3]} 40... Kg6 {[%clk 0:00:53.7]} 1/2-1/2

[Event "Late-Titled-Tuesday-Blitz-September-12-2023"]
[Site "Chess.com"]
[Date "2023.09.12"]
[Round "5"]
[White "adiosabu"]
[Black "Harald_Schmidt"]
[Result "1-0"]
[WhiteElo "2597"]
[BlackElo "2287"]
[TimeControl "180+1"]
[EndTime "14:52:19 PDT"]
[Termination "adiosabu won by checkmate"]

1. d4 {[%clk 0:02:45.7]} 1... d5 {[%clk 0:02:59.1]} 2. Nf3 {[%clk 0:02:44.7]}
2... c6 {[%clk 0:02:58.8]} 3. h3 {[%clk 0:02:44]} 3... Bf5 {[%clk 0:02:56.5]} 4.
Bf4 {[%clk 0:02:41.8]} 4... e6 {[%clk 0:02:55.4]} 5. Nbd2 {[%clk 0:02:38]} 5...
Nf6 {[%clk 0:02:53.3]} 6. e3 {[%clk 0:02:36.2]} 6... Bd6 {[%clk 0:02:50.5]} 7.
Bxd6 {[%clk 0:02:32.4]} 7... Qxd6 {[%clk 0:02:50]} 8. Be2 {[%clk 0:02:27.4]}
8... c5 {[%clk 0:02:47.7]} 9. c3 {[%clk 0:02:26.3]} 9... Nc6 {[%clk 0:02:46.6]}
10. Bb5 {[%clk 0:02:25.9]} 10... O-O {[%clk 0:02:45]} 11. O-O {[%clk 0:02:24.6]}
11... h6 {[%clk 0:02:43.6]} 12. Bxc6 {[%clk 0:02:12.7]} 12... bxc6 {[%clk
0:02:42.9]} 13. Nb3 {[%clk 0:02:07.9]} 13... Nd7 {[%clk 0:02:39.8]} 14. Na5
{[%clk 0:01:37.9]} 14... Rfb8 {[%clk 0:02:17.5]} 15. Qd2 {[%clk 0:01:32.4]}
15... Rb5 {[%clk 0:01:55.3]} 16. c4 {[%clk 0:01:31.9]} 16... Rbb8 {[%clk
0:01:44.9]} 17. a3 {[%clk 0:01:25.9]} 17... cxd4 {[%clk 0:01:38]} 18. Nxd4
{[%clk 0:01:23.8]} 18... Be4 {[%clk 0:01:35.3]} 19. Naxc6 {[%clk 0:01:20.3]}
19... e5 {[%clk 0:01:29.1]} 20. Nxb8 {[%clk 0:01:16.8]} 20... exd4 {[%clk
0:01:28.7]} 21. Nxd7 {[%clk 0:01:15]} 21... d3 {[%clk 0:01:21.2]} 22. f3 {[%clk
0:01:07.6]} 22... Bg6 {[%clk 0:01:09.1]} 23. cxd5 {[%clk 0:01:07.2]} 23... Qxd5
{[%clk 0:01:06.3]} 24. e4 {[%clk 0:00:53.7]} 24... Qxd7 {[%clk 0:01:05.7]} 25.
Rfd1 {[%clk 0:00:52.1]} 25... Rd8 {[%clk 0:01:05]} 26. Rac1 {[%clk 0:00:51.2]}
26... f5 {[%clk 0:01:04.2]} 27. Qb4 {[%clk 0:00:47]} 27... fxe4 {[%clk
0:01:01.7]} 28. fxe4 {[%clk 0:00:47.9]} 28... Kh7 {[%clk 0:00:46.9]} 29. Rc3
{[%clk 0:00:47]} 29... Re8 {[%clk 0:00:19]} 30. Rcxd3 {[%clk 0:00:45.9]} 30...
Qc7 {[%clk 0:00:18.6]} 31. Rd7 {[%clk 0:00:43.7]} 31... Qg3 {[%clk 0:00:17.7]}
32. Qc3 {[%clk 0:00:40]} 32... Qg5 {[%clk 0:00:16.4]} 33. Qxg7# {[%clk
0:00:38.8]} 1-0

[Event "Late-Titled-Tuesday-Blitz-September-12-2023"]
[Site "Chess.com"]
[Date "2023.09.12"]
[Round "5"]
[White "TERMINATOR_PC"]
[Black "IMSlavin"]
[Result "1-0"]
[WhiteElo "2540"]
[BlackElo "2233"]
[TimeControl "180+1"]
[EndTime "14:52:21 PDT"]
[Termination "TERMINATOR_PC won on time"]

1. e4 {[%clk 0:01:53.8]} 1... Nc6 {[%clk 0:03:00.7]} 2. Nf3 {[%clk 0:01:52.9]}
2... d6 {[%clk 0:03:00.6]} 3. d4 {[%clk 0:01:52.6]} 3... Nf6 {[%clk 0:03:00.8]}
4. Nc3 {[%clk 0:01:52.4]} 4... Bg4 {[%clk 0:03:00.9]} 5. Be2 {[%clk 0:01:50.2]}
5... e5 {[%clk 0:03:00.6]} 6. d5 {[%clk 0:01:48.7]} 6... Ne7 {[%clk 0:03:00.6]}
7. Be3 {[%clk 0:01:46.6]} 7... Ng6 {[%clk 0:03:00.1]} 8. Nd2 {[%clk 0:01:44.8]}
8... Bd7 {[%clk 0:02:59.2]} 9. g3 {[%clk 0:01:43.6]} 9... Be7 {[%clk 0:02:58]}
10. h4 {[%clk 0:01:43.7]} 10... h6 {[%clk 0:02:57.5]} 11. h5 {[%clk 0:01:43.1]}
11... Nf8 {[%clk 0:02:57]} 12. Nc4 {[%clk 0:01:38.6]} 12... N8h7 {[%clk
0:02:55.4]} 13. f3 {[%clk 0:01:37.3]} 13... a6 {[%clk 0:02:54.8]} 14. Qd2 {[%clk
0:01:34.9]} 14... O-O {[%clk 0:02:39]} 15. f4 {[%clk 0:01:27.5]} 15... b5 {[%clk
0:02:21.1]} 16. fxe5 {[%clk 0:01:26.7]} 16... bxc4 {[%clk 0:02:20.4]} 17. exf6
{[%clk 0:01:26.7]} 17... Bxf6 {[%clk 0:02:17]} 18. Bxc4 {[%clk 0:01:26.9]} 18...
Re8 {[%clk 0:02:10.4]} 19. O-O-O {[%clk 0:01:25.7]} 19... Bg4 {[%clk 0:02:00.9]}
20. Rdf1 {[%clk 0:01:22.7]} 20... Ng5 {[%clk 0:01:32.5]} 21. Kb1 {[%clk
0:01:18.8]} 21... Nxe4 {[%clk 0:01:24]} 22. Nxe4 {[%clk 0:01:18.6]} 22... Rxe4
{[%clk 0:01:20.7]} 23. Rf4 {[%clk 0:01:19.2]} 23... Rxf4 {[%clk 0:01:17.1]} 24.
gxf4 {[%clk 0:01:19.2]} 24... Bf5 {[%clk 0:01:09.3]} 25. Rg1 {[%clk 0:01:17.4]}
25... Rb8 {[%clk 0:01:04.7]} 26. Bd4 {[%clk 0:01:16.7]} 26... a5 {[%clk
0:00:38.3]} 27. Qc3 {[%clk 0:01:12.7]} 27... Bxd4 {[%clk 0:00:30.9]} 28. Qxd4
{[%clk 0:01:13.6]} 28... Qf8 {[%clk 0:00:17.4]} 29. a3 {[%clk 0:01:11.3]} 29...
Kh7 {[%clk 0:00:15.7]} 30. Bd3 {[%clk 0:01:07.6]} 30... Bxd3 {[%clk 0:00:15.3]}
31. Qxd3+ {[%clk 0:01:08.5]} 31... Kg8 {[%clk 0:00:15]} 32. Qc3 {[%clk 0:01:09]}
32... Rb7 {[%clk 0:00:11.4]} 33. f5 {[%clk 0:01:08]} 33... Kh7 {[%clk
0:00:10.2]} 34. f6 {[%clk 0:01:06.2]} 34... g6 {[%clk 0:00:08.7]} 35. Qc6 {[%clk
0:01:04.4]} 35... Qb8 {[%clk 0:00:04.8]} 36. hxg6+ {[%clk 0:01:03.6]} 36... fxg6
{[%clk 0:00:01.7]} 37. Qd7+ {[%clk 0:01:03.4]} 1-0

[Event "Late-Titled-Tuesday-Blitz-September-12-2023"]
[Site "Chess.com"]
[Date "2023.09.12"]
[Round "5"]
[White "ilya2700"]
[Black "Sjakkerntobi"]
[Result "1-0"]
[WhiteElo "2302"]
[BlackElo "2505"]
[TimeControl "180+1"]
[EndTime "14:52:24 PDT"]
[Termination "ilya2700 won by resignation"]

1. c4 {[%clk 0:03:00.9]} 1... c5 {[%clk 0:03:00.1]} 2. Nc3 {[%clk 0:02:58.6]}
2... g6 {[%clk 0:03:00.7]} 3. Nf3 {[%clk 0:02:57.8]} 3... Bg7 {[%clk 0:03:01.3]}
4. d4 {[%clk 0:02:55.3]} 4... cxd4 {[%clk 0:03:01.1]} 5. Nxd4 {[%clk 0:02:56.2]}
5... Nc6 {[%clk 0:03:01.8]} 6. Nc2 {[%clk 0:02:55.4]} 6... Nf6 {[%clk
0:03:01.9]} 7. g3 {[%clk 0:02:55.7]} 7... O-O {[%clk 0:03:01]} 8. Bg2 {[%clk
0:02:56.4]} 8... d6 {[%clk 0:03:01.5]} 9. O-O {[%clk 0:02:56.3]} 9... Be6 {[%clk
0:03:01.3]} 10. b3 {[%clk 0:02:55.3]} 10... Qd7 {[%clk 0:02:44.8]} 11. Re1
{[%clk 0:02:47.7]} 11... Rfd8 {[%clk 0:02:35.1]} 12. Bb2 {[%clk 0:02:44.8]}
12... a6 {[%clk 0:02:35]} 13. Nd5 {[%clk 0:02:37.8]} 13... Bxd5 {[%clk
0:02:30.5]} 14. cxd5 {[%clk 0:02:35.4]} 14... Nb8 {[%clk 0:02:17.1]} 15. Nd4
{[%clk 0:02:28.8]} 15... Qe8 {[%clk 0:02:05.4]} 16. Rc1 {[%clk 0:02:26]} 16...
Nbd7 {[%clk 0:02:05.8]} 17. Rc7 {[%clk 0:02:25.5]} 17... Rab8 {[%clk 0:02:05.7]}
18. b4 {[%clk 0:02:22.7]} 18... Rdc8 {[%clk 0:02:05.2]} 19. Qc2 {[%clk 0:02:20]}
19... Nb6 {[%clk 0:01:50.1]} 20. e4 {[%clk 0:01:54.7]} 20... Qd8 {[%clk
0:01:44.3]} 21. Rc1 {[%clk 0:01:52.8]} 21... Ne8 {[%clk 0:01:39.1]} 22. Rxc8
{[%clk 0:01:43.2]} 22... Rxc8 {[%clk 0:01:40]} 23. Qd1 {[%clk 0:01:34.2]} 23...
Rxc1 {[%clk 0:01:38]} 24. Qxc1 {[%clk 0:01:33.7]} 24... Qc7 {[%clk 0:01:37.8]}
25. Qxc7 {[%clk 0:01:32.1]} 25... Nxc7 {[%clk 0:01:38.6]} 26. Ba1 {[%clk
0:01:15.8]} 26... Nb5 {[%clk 0:01:31.1]} 27. Nb3 {[%clk 0:01:03.2]} 27... Bxa1
{[%clk 0:01:29.2]} 28. Nxa1 {[%clk 0:01:04.1]} 28... Nc3 {[%clk 0:01:28.4]} 29.
a3 {[%clk 0:01:02.9]} 29... Nc4 {[%clk 0:01:28]} 30. Nc2 {[%clk 0:01:02.9]}
30... Nb5 {[%clk 0:01:23.2]} 31. a4 {[%clk 0:01:01.9]} 31... Nc3 {[%clk
0:01:23.2]} 32. a5 {[%clk 0:01:01.5]} 32... Nd2 {[%clk 0:01:06.1]} 33. Bh3
{[%clk 0:00:43.3]} 33... f5 {[%clk 0:00:19.3]} 34. exf5 {[%clk 0:00:42]} 34...
Nxd5 {[%clk 0:00:19.5]} 35. fxg6 {[%clk 0:00:40.9]} 35... hxg6 {[%clk
0:00:19.1]} 36. Be6+ {[%clk 0:00:40.8]} 36... Kg7 {[%clk 0:00:18.8]} 37. Bxd5
{[%clk 0:00:41.7]} 1-0

[Event "Late-Titled-Tuesday-Blitz-September-12-2023"]
[Site "Chess.com"]
[Date "2023.09.12"]
[Round "5"]
[White "SergioMoralesG"]
[Black "Big_Finky"]
[Result "1-0"]
[WhiteElo "2411"]
[BlackElo "2269"]
[TimeControl "180+1"]
[EndTime "14:52:24 PDT"]
[Termination "SergioMoralesG won on time"]

1. d4 {[%clk 0:03:00.9]} 1... d5 {[%clk 0:02:59.9]} 2. c4 {[%clk 0:02:59.9]}
2... c6 {[%clk 0:03:00]} 3. Nf3 {[%clk 0:03:00.2]} 3... Nf6 {[%clk 0:03:00]} 4.
Nc3 {[%clk 0:03:00.2]} 4... dxc4 {[%clk 0:02:59.4]} 5. a4 {[%clk 0:02:56.6]}
5... Bf5 {[%clk 0:02:59]} 6. e3 {[%clk 0:02:50.9]} 6... e6 {[%clk 0:02:58.6]} 7.
Bxc4 {[%clk 0:02:41.9]} 7... Bb4 {[%clk 0:02:57.8]} 8. O-O {[%clk 0:02:40.9]}
8... O-O {[%clk 0:02:56.6]} 9. Na2 {[%clk 0:02:34.3]} 9... Be7 {[%clk
0:02:48.9]} 10. b3 {[%clk 0:02:29.1]} 10... Nbd7 {[%clk 0:02:39.5]} 11. Bb2
{[%clk 0:02:28.8]} 11... c5 {[%clk 0:02:15.8]} 12. Rc1 {[%clk 0:02:26]} 12...
Rc8 {[%clk 0:02:01.8]} 13. h3 {[%clk 0:02:24.6]} 13... h6 {[%clk 0:01:56.6]} 14.
Qe2 {[%clk 0:02:24.1]} 14... Nb6 {[%clk 0:01:47.7]} 15. Bd3 {[%clk 0:02:13.7]}
15... Bxd3 {[%clk 0:01:45.4]} 16. Qxd3 {[%clk 0:02:14.6]} 16... cxd4 {[%clk
0:01:43.8]} 17. Bxd4 {[%clk 0:02:01.3]} 17... Qd5 {[%clk 0:01:16.7]} 18. Rfd1
{[%clk 0:01:47.6]} 18... Rxc1 {[%clk 0:01:07.2]} 19. Nxc1 {[%clk 0:01:46.6]}
19... Rd8 {[%clk 0:01:03.3]} 20. Ne2 {[%clk 0:01:36.7]} 20... Qa5 {[%clk
0:00:53.2]} 21. Qc2 {[%clk 0:01:21.4]} 21... Nbd5 {[%clk 0:00:49.5]} 22. Ne5
{[%clk 0:01:11.4]} 22... Qb4 {[%clk 0:00:36.7]} 23. Bxa7 {[%clk 0:00:59.4]}
23... Qa3 {[%clk 0:00:25.9]} 24. Bd4 {[%clk 0:00:55.1]} 24... Nb4 {[%clk
0:00:22.2]} 25. Qc4 {[%clk 0:00:50.5]} 25... Nc6 {[%clk 0:00:12.5]} 26. Nxc6
{[%clk 0:00:35.9]} 26... bxc6 {[%clk 0:00:12.4]} 27. Ra1 {[%clk 0:00:32.7]} 1-0